bitfinex-derivatives/quotes_SOLF0:USTF0_20250319
["timestamp","ask_amount","ask_price","bid_price","bid_amount"]
[1742415377486,5.188e-05,134.12,134.11,37.3949]
[1742415378989,5.188e-05,134.12,134.11,29.94]
[1742415380086,5.188e-05,134.12,134.1,7.51185724]
[1742415380794,5.188e-05,134.12,134.11,7.4549]
[1742415381290,5.188e-05,134.12,134.1,0.05665724]
[1742415381495,21.0298978,134.12,134.1,0.05665724]
[1742415382087,29.92,134.11,134.07,39.10874602]
[1742415382296,21.02984592,134.09,134.07,39.10874602]
[1742415382497,7.4565,134.08,134.07,39.10874602]
[1742415383192,7.4565,134.08,134.06,77.78246177]
[1742415383193,7.4571,134.07,134.06,77.83805413]
[1742415383395,21.02984592,134.07,134.05,116.39869752]
[1742415383788,7.4577,134.06,134.05,116.39869752]
[1742415384694,7.4577,134.06,134.04,0.0492706]
[1742415384900,21.02984592,134.05,133.97,147.39827213]
[1742415385096,21.02984592,134.03,133.98,29.92]
[1742415385701,50.94984592,134.05,134.0,7.4609]
[1742415386003,21.02984592,134.05,133.98,29.92]
[1742415386200,0.05595113,134.04,133.98,29.92]
[1742415386501,21.02984592,134.03,133.98,29.92]
[1742415387005,0.05595113,134.04,133.98,29.92]
[1742415389308,0.05595113,134.04,134.03,7.4593]
[1742415390311,0.05595113,134.04,134.02,7.4596]
[1742415390809,0.05595113,134.04,134.01,29.92]
[1742415390998,0.05595113,134.04,134.02,7.4599]
[1742415391202,0.05595113,134.04,134.01,29.92]
[1742415391706,0.05595113,134.04,134.03,7.4593]
[1742415392311,0.05595113,134.04,134.01,29.92]
[1742415392910,0.05595113,134.04,134.01,37.3801]
[1742415393106,0.05595113,134.04,134.01,29.92]
[1742415393609,0.05595113,134.04,134.03,7.4593]
[1742415393809,246.02,134.08,134.03,21.02984592]
[1742415394006,246.02,134.08,134.07,7.4571]
[1742415394211,21.02984592,134.13,134.07,29.92]
[1742415394409,246.14,134.14,134.07,50.94984592]
[1742415394912,7.454,134.13,134.1,7.4551]
[1742415395215,0.05542402,134.12,134.1,29.92]
[1742415395512,0.00615342,134.12,134.11,28.48474592]
[1742415395909,267.16984592,134.19,134.11,21.02984592]
[1742415396714,7.4518,134.17,134.14,7.4531]
[1742415396915,21.02984592,134.17,134.12,29.92]
[1742415397111,33.67944166,134.17,134.14,0.05288244]
[1742415397311,7.4527,134.15,134.14,0.05288244]
[1742415397917,7.4543,134.12,134.1,29.92]
[1742415398908,63.54438364,134.15,134.06,7.9302]
[1742415398909,7.4549,134.11,134.08,29.92]
[1742415399203,7.4549,134.11,134.1,0.05022303]
[1742415399410,7.50482045,134.12,134.07,29.92]
[1742415399711,7.50482045,134.12,134.09,0.05087209]
[1742415400012,0.05022045,134.12,134.09,0.05087209]
[1742415400617,7.4554,134.1,134.09,0.05087209]
[1742415403123,0.05022045,134.12,134.09,0.05087209]
[1742415403821,7.4551,134.11,134.09,0.05087209]
[1742415404309,7.4554,134.1,134.09,0.05087209]
[1742415405322,0.05022045,134.12,134.09,0.05087209]
[1742415405520,0.05022045,134.12,134.09,7.50667209]
[1742415406015,0.05022045,134.12,134.09,0.05087209]
[1742415406221,0.05022045,134.12,134.1,7.4551]
[1742415406424,0.05022045,134.12,134.1,37.3551]
[1742415407319,7.50452045,134.12,134.1,37.3551]
[1742415407624,0.05022045,134.12,134.11,7.4549]
[1742415408017,0.05022045,134.12,134.11,37.3549]
[1742415410826,0.05022045,134.12,134.11,29.9]
[1742415412023,2.045e-05,134.12,134.09,29.95087209]
[1742415412227,4.1227,134.2,134.11,33.62438364]
[1742415412527,11.5728,134.2,134.17,7.4515]
[1742415412820,246.06,134.22,134.16,29.88]
[1742415413121,275.94,134.22,134.16,29.88]
[1742415413327,0.05352359,134.2,134.18,0.05621734]
[1742415417924,29.93352359,134.2,134.18,0.05621734]
[1742415418226,29.93352359,134.2,134.12,7.9689]
[1742415418429,34.11962359,134.2,134.13,7.4534]
[1742415418625,4.23962359,134.2,134.14,29.88]
[1742415419335,4.23962359,134.2,134.16,0.05124263]
[1742415419536,7.4505,134.19,134.16,0.05124263]
[1742415420842,20.99928974,134.19,134.16,0.05124263]
[1742415421034,24.91498974,134.19,134.16,0.05124263]
[1742415421437,20.99928974,134.19,134.16,0.05124263]
[1742415421743,4.23962359,134.2,134.16,0.05124263]
[1742415422138,7.4507,134.19,134.16,0.05124263]
[1742415422334,0.05352359,134.2,134.16,29.91124263]
[1742415422637,7.50362359,134.2,134.16,37.36294263]
[1742415422843,0.05352359,134.2,134.16,29.91124263]
[1742415424345,7.4513,134.18,134.16,29.91124263]
[1742415424844,0.05352359,134.2,134.16,29.91124263]
[1742415425545,20.99928974,134.19,134.16,29.91124263]
[1742415425744,20.99928974,134.19,134.16,0.05124263]
[1742415426150,7.4515,134.17,134.16,0.05124263]
[1742415426346,28.45078974,134.17,134.16,0.05124263]
[1742415426542,20.99928974,134.19,134.16,0.05124263]
[1742415426847,7.4506,134.19,134.16,0.05124263]
[1742415427144,7.4511,134.18,134.16,0.05124263]
[1742415428437,7.4507,134.19,134.16,0.05124263]
[1742415428641,7.4507,134.19,134.16,29.91124263]
[1742415431047,7.4511,134.18,134.16,29.91124263]
[1742415431345,0.05352359,134.2,134.16,29.91124263]
[1742415431947,7.4509,134.19,134.16,29.91124263]
[1742415432147,20.99928974,134.19,134.16,0.05124263]
[1742415432547,7.4515,134.17,134.16,0.05124263]
[1742415432743,28.45078974,134.17,134.16,0.05124263]
[1742415432945,20.99928974,134.17,134.1,3.9513]
[1742415433145,20.99928974,134.15,134.11,29.84]
[1742415433543,7.4543,134.12,134.11,29.84]
[1742415434343,0.05405635,134.13,134.11,29.84]
[1742415436352,7.50785635,134.13,134.11,29.84]
[1742415438250,21.05334609,134.13,134.07,3.9052]
[1742415438553,21.05334609,134.13,134.08,29.84]
[1742415439352,21.05334609,134.13,134.06,359.0]
[1742415439555,7.4563,134.09,134.07,29.84]
[1742415439855,20.99928974,134.11,134.07,29.84]
[1742415440050,0.04721416,134.09,134.07,29.84]
[1742415441055,0.04721416,134.09,134.07,37.2969]
[1742415441947,0.04721416,134.09,134.07,29.84]
[1742415442151,0.04721416,134.09,134.04,7.9502]
[1742415442355,21.0465039,134.09,134.04,33.9006]
[1742415442552,7.4568,134.08,134.04,41.3591]
[1742415443152,21.0465039,134.09,134.04,29.84]
[1742415443552,7.4569,134.08,134.04,37.2987]
[1742415443755,7.4569,134.08,134.04,29.84]
[1742415444154,7.4569,134.08,134.04,37.2985]
[1742415444354,21.0465039,134.09,134.04,37.2985]
[1742415444355,7.4571,134.07,134.04,37.2985]
[1742415444557,7.4571,134.07,134.04,29.84]
[1742415445057,20.99928974,134.07,134.03,29.84]
[1742415445358,20.99928974,134.07,133.98,39.9988311]
[1742415445553,20.99928974,134.05,133.98,39.9988311]
[1742415445756,0.04787422,134.04,133.98,39.9988311]
[1742415445955,7.4596,134.03,133.99,29.84]
[1742415446152,246.08787422,134.04,133.99,29.84]
[1742415447262,246.08787422,134.04,133.99,50.83928974]
[1742415447858,246.08787422,134.04,134.03,7.4593]
[1742415449558,246.08787422,134.04,134.02,29.84]
[1742415450462,246.08787422,134.04,134.03,7.4593]
[1742415450762,246.12,134.09,134.03,20.99928974]
[1742415451059,4.1921,134.15,134.07,20.99928974]
[1742415451257,4.1064,134.16,134.1,20.99928974]
[1742415451456,4.1064,134.16,134.11,29.84]
[1742415451859,21.05318808,134.15,134.12,0.04988943]
[1742415452054,20.99928974,134.15,134.09,29.84]
[1742415452250,50.89500755,134.15,134.12,0.04702622]
[1742415452652,41.99857948,134.13,133.96,359.0]
[1742415452855,20.99928974,134.04,133.96,359.0]
[1742415453056,50.83928974,134.04,133.96,359.0]
[1742415453358,37.299,134.04,133.96,388.84]
[1742415453862,0.0572338,134.01,133.97,7.4624]
[1742415454559,0.0572338,134.01,133.98,7.462]
[1742415456674,0.0572338,134.01,133.97,4.0357]
[1742415457375,7.4615,134.0,133.97,4.0357]
[1742415457575,0.0572338,134.01,133.97,4.0357]
[1742415458475,0.0572338,134.01,133.97,11.498]
[1742415458977,7.4611,134.0,133.97,4.0357]
[1742415459178,0.0572338,134.01,133.97,4.0357]
[1742415459679,0.0572338,134.01,133.97,11.4983]
[1742415460374,7.5178338,134.01,133.97,11.4983]
[1742415460679,0.0572338,134.01,133.97,4.0357]
[1742415461279,7.5181338,134.01,133.97,4.0357]
[1742415461579,0.0572338,134.01,133.97,4.0357]
[1742415462978,0.0572338,134.01,133.99,7.4613]
[1742415463179,0.0572338,134.01,133.99,37.3013]
[1742415464781,0.0572338,134.01,134.0,7.461]
[1742415466286,185.00611534,137.11,134.04,7.4588]
[1742415466287,246.2,134.1,134.04,7.4588]
[1742415466481,33.6838401,134.09,134.03,29.84]
[1742415466685,33.6838401,134.09,134.01,29.84]
[1742415466885,7.458,134.06,134.01,29.84]
[1742415467086,29.84,134.08,134.01,29.84]
[1742415467483,0.05374747,134.06,134.03,7.50899865]
[1742415467689,0.05374747,134.06,134.03,0.04989865]
[1742415468378,7.4588,134.04,134.03,0.04989865]
[1742415469389,70.9823401,134.05,134.03,0.04989865]
[1742415469586,0.05374747,134.06,134.03,0.04989865]
[1742415470987,0.05374747,134.06,134.04,7.4583]
[1742415471393,0.05374747,134.06,134.03,0.04989865]
[1742415471689,0.05374747,134.06,134.03,7.50869865]
[1742415472091,0.05374747,134.06,134.03,0.04989865]
[1742415473190,0.05374747,134.06,134.04,7.4585]
[1742415473388,1.49097957,134.14,134.05,29.84]
[1742415473586,1.49097957,134.14,134.09,7.4555]
[1742415473787,1.49097957,134.14,134.08,29.84]
[1742415474087,246.2,134.15,134.08,29.84]
[1742415474791,0.05170723,134.13,134.12,7.454]
[1742415474987,0.05170723,134.13,134.11,29.82]
[1742415475991,0.05170723,134.13,134.12,7.4543]
[1742415476689,33.6838401,134.19,134.11,38.0457]
[1742415476895,7.4511,134.18,134.11,38.0457]
[1742415477285,7.4511,134.18,134.14,7.4528]
[1742415477491,41.1344401,134.19,134.14,29.82]
[1742415477694,246.18,134.2,134.17,7.4511]
[1742415477896,0.05535438,134.18,134.17,7.4511]
[1742415478492,0.05535438,134.18,134.15,0.05554373]
[1742415479396,7.4521,134.16,134.15,0.05554373]
[1742415483398,7.4518,134.17,134.15,0.05554373]
[1742415483698,0.05535438,134.18,134.15,0.05554373]
[1742415484097,0.05535438,134.18,134.15,29.85554373]
[1742415484502,7.4521,134.16,134.15,0.05554373]
[1742415489203,33.6838401,134.17,134.15,0.05554373]
[1742415489204,41.1356401,134.17,134.15,0.05554373]
[1742415489403,0.05535438,134.18,134.15,0.05554373]
[1742415489807,7.4521,134.16,134.15,0.05554373]
[1742415490709,37.2521,134.16,134.15,0.05554373]
[1742415493110,58.2654436,134.16,134.15,0.05554373]
[1742415493312,7.4546,134.12,134.09,37.7976]
[1742415493514,21.0133436,134.12,134.06,362.8983]
[1742415493814,21.0133436,134.12,134.07,37.2569]
[1742415494015,21.0133436,134.12,134.07,29.8]
[1742415494413,0.05465972,134.11,134.08,7.51128485]
[1742415494915,0.05465972,134.11,134.08,0.05508485]
[1742415495514,0.05465972,134.11,134.1,7.4554]
[1742415495815,0.05465972,134.11,134.08,0.05508485]
[1742415496714,0.05465972,134.11,134.1,7.4554]
[1742415497316,0.05465972,134.11,134.08,29.83508485]
[1742415498018,0.05465972,134.11,134.1,7.4554]
[1742415500109,246.02,134.14,134.12,7.4538]
[1742415500312,246.02,134.14,134.11,29.78]
[1742415500712,246.02,134.14,134.13,7.4538]
[1742415500918,7.4518,134.17,134.11,29.78]
[1742415501314,0.05521677,134.15,134.13,0.05028284]
[1742415501914,0.05521677,134.15,134.14,7.4529]
[1742415502223,16.81647235,134.24,134.14,63.4129447]
[1742415502411,246.04,134.25,134.16,33.6329447]
[1742415502615,246.04,134.25,134.17,29.78]
[1742415503122,246.04,134.25,134.23,7.4478]
[1742415503322,246.08935105,134.25,134.23,7.4478]
[1742415503717,0.04935105,134.25,134.24,7.4477]
[1742415503919,246.04,134.3,134.24,29.78]
[1742415504123,253.4847,134.3,134.24,29.78]
[1742415504322,246.04,134.3,134.24,37.2273]
[1742415505118,0.04854532,134.28,134.24,29.78]
[1742415507830,0.04854532,134.28,134.24,37.2273]
[1742415508331,0.04854532,134.28,134.25,7.447]
[1742415508929,0.04854532,134.28,134.26,7.4465]
[1742415509128,0.04854532,134.28,134.27,29.76]
[1742415509430,33.6329447,134.36,134.28,7.4452]
[1742415509730,7.4427,134.33,134.28,7.4452]
[1742415510118,33.6329447,134.36,134.29,29.76]
[1742415510318,0.05500166,134.31,134.29,29.81482147]
[1742415510519,29.76,134.35,134.29,29.81482147]
[1742415510724,0.05560421,134.31,134.29,29.81482147]
[1742415511227,0.05560421,134.31,134.3,7.4443]
[1742415511437,71.3266447,134.37,134.29,29.81482147]
[1742415511438,7.4423,134.34,134.29,29.81482147]
[1742415511931,63.3929447,134.37,134.3,7.4443]
[1742415512123,63.3929447,134.37,134.29,29.76]
[1742415512530,0.04884308,134.34,134.32,0.0507949]
[1742415513033,7.443,134.33,134.32,0.0507949]
[1742415514332,0.04884308,134.34,134.32,29.7907949]
[1742415514633,4.1146,134.41,134.32,63.4237396]
[1742415514831,7.4378,134.42,134.33,4.2545]
[1742415515024,245.8,134.43,134.33,4.2545]
[1742415515230,279.4329447,134.43,134.33,4.2545]
[1742415515728,279.4329447,134.43,134.37,0.05623847]
[1742415515729,0.05580126,134.39,134.37,0.05623847]
[1742415517031,0.05580126,134.39,134.38,29.74]
[1742415517338,4.1146,134.46,134.38,29.74]
[1742415517532,33.6329447,134.44,134.33,4.2545]
[1742415517735,33.6329447,134.41,134.34,7.442]
[1742415518036,309.1129447,134.41,134.34,7.442]
[1742415518235,309.1129447,134.41,134.35,7.4416]
[1742415518428,0.04802769,134.39,134.36,0.05087066]
[1742415519735,33.68097239,134.39,134.36,0.05087066]
[1742415520036,7.4404,134.37,134.36,0.05087066]
[1742415520236,37.1604,134.37,134.36,0.05087066]
[1742415520538,7.4401,134.38,134.36,0.05087066]
[1742415520830,33.68097239,134.39,134.36,0.05087066]
[1742415521030,63.40097239,134.39,134.36,0.05087066]
[1742415521337,0.04802769,134.39,134.36,0.05087066]
[1742415521933,7.48772769,134.39,134.36,0.05087066]
[1742415522940,7.48772769,134.39,134.36,7.49187066]
[1742415523132,0.04802769,134.39,134.36,7.49187066]
[1742415523338,0.04802769,134.39,134.37,29.72]
[1742415523540,0.04802769,134.39,134.38,7.4399]
[1742415523732,0.04802769,134.39,134.37,29.72]
[1742415524431,0.04802769,134.39,134.36,0.05087066]
[1742415524837,29.72,134.38,134.36,0.05087066]
[1742415526240,7.4404,134.37,134.36,0.05087066]
[1742415528742,7.4427,134.33,134.29,363.0507]
[1742415528941,7.4427,134.33,134.29,41.2151]
[1742415529142,7.4424,134.34,134.29,29.72]
[1742415529537,29.72,134.35,134.31,7.4433]
[1742415529740,0.0541322,134.33,134.31,7.4433]
[1742415530439,0.0541322,134.33,134.32,37.1432]
[1742415531436,0.0541322,134.33,134.32,29.7]
[1742415532042,0.0541322,134.33,134.32,37.1432]
[1742415532844,0.0541322,134.33,134.32,29.7]
[1742415533444,0.0541322,134.33,134.32,37.1432]
[1742415534043,0.0541322,134.33,134.32,29.7]
[1742415534444,0.0541322,134.33,134.3,29.75669081]
[1742415534637,0.0541322,134.33,134.3,37.20079081]
[1742415535447,7.4968322,134.33,134.3,37.20079081]
[1742415535645,7.4968322,134.33,134.3,29.75669081]
[1742415535846,7.4971322,134.33,134.3,29.75669081]
[1742415536047,0.0541322,134.33,134.3,29.75669081]
[1742415536249,163.0,134.32,134.23,39.78228601]
[1742415536451,33.6329447,134.3,134.24,64.84027324]
[1742415536747,3.9579,134.31,134.25,29.7]
[1742415537144,275.34,134.33,134.25,29.7]
[1742415537339,245.64,134.33,134.28,0.05258054]
[1742415537546,0.04987663,134.3,134.28,0.05258054]
[1742415538345,7.49427663,134.3,134.28,0.05258054]
[1742415539746,7.49427663,134.3,134.28,29.75258054]
[1742415539747,0.04987663,134.3,134.28,29.75258054]
[1742415540347,0.04987663,134.3,134.29,7.4449]
[1742415540543,245.64,134.33,134.28,29.75258054]
[1742415540740,245.64,134.33,134.29,4.0917]
[1742415541045,253.083,134.33,134.29,11.5363]
[1742415541444,245.64,134.33,134.29,4.0917]
[1742415541746,0.05599116,134.32,134.3,7.4441]
[1742415541943,0.05599116,134.32,134.31,29.7]
[1742415542145,7.4411,134.36,134.31,29.7]
[1742415542547,245.7,134.38,134.31,29.7]
[1742415543046,7.4419,134.35,134.32,7.4429]
[1742415543243,0.04958511,134.35,134.32,0.05655734]
[1742415543545,7.4427,134.33,134.32,0.05655734]
[1742415544244,7.4443,134.3,134.29,39.78228601]
[1742415546050,7.4443,134.3,134.28,0.05521878]
[1742415546244,0.05395205,134.31,134.28,0.05521878]
[1742415546845,7.4449,134.29,134.28,0.05521878]
[1742415548949,7.447,134.26,134.22,43.89378601]
[1742415549252,33.50640998,134.29,134.22,69.48228601]
[1742415549452,7.4468,134.26,134.22,69.48228601]
[1742415549955,7.448,134.24,134.22,69.48228601]
[1742415550252,0.04872491,134.25,134.23,0.05441879]
[1742415550549,7.4477,134.24,134.23,0.05441879]
[1742415550947,0.04872491,134.25,134.23,0.05441879]
[1742415551149,7.49602491,134.25,134.23,0.05441879]
[1742415551450,0.04872491,134.25,134.23,0.05441879]
[1742415551649,7.4477,134.24,134.23,0.05441879]
[1742415551955,0.04872491,134.25,134.23,0.05441879]
[1742415552148,7.4477,134.24,134.23,0.05441879]
[1742415552652,7.49582491,134.25,134.23,0.05441879]
[1742415552853,0.04872491,134.25,134.23,0.05441879]
[1742415553361,7.49612491,134.25,134.23,0.05441879]
[1742415554048,7.4477,134.24,134.23,0.05441879]
[1742415555853,41.08562491,134.25,134.23,0.05441879]
[1742415557552,0.04872491,134.25,134.23,0.05441879]
[1742415557952,0.04872491,134.25,134.24,7.4477]
[1742415559655,0.04872491,134.25,134.23,29.75441879]
[1742415559856,7.4477,134.24,134.23,0.05441879]
[1742415562554,33.50640998,134.24,134.16,29.7]
[1742415562751,38.13,134.23,134.15,11.8793]
[1742415562946,33.50640998,134.21,134.13,7.4536]
[1742415563153,275.52,134.2,134.13,7.4536]
[1742415563561,275.52,134.2,134.11,33.9419]
[1742415563760,33.55857302,134.18,134.15,0.04831098]
[1742415563967,29.7,134.17,134.15,0.04831098]
[1742415564160,7.4521,134.16,134.15,0.04831098]
[1742415564554,29.7,134.17,134.1,316.08152084]
[1742415564858,29.7,134.17,134.11,7.4545]
[1742415565255,7.4529,134.15,134.1,323.53672084]
[1742415565458,29.7,134.17,134.1,323.53672084]
[1742415565654,0.04754902,134.14,134.11,0.04727008]
[1742415566054,275.60754902,134.14,134.11,0.04727008]
[1742415566456,275.60754902,134.14,134.07,29.7]
[1742415566457,33.50640998,134.13,134.07,29.7]
[1742415566960,275.60754902,134.14,134.08,7.4562]
[1742415567357,283.06114902,134.14,134.06,29.7]
[1742415567554,275.56,134.14,134.07,7.4568]
[1742415567756,0.0529707,134.11,134.09,0.04928735]
[1742415568061,0.0529707,134.11,134.09,7.50488735]
[1742415569655,0.0529707,134.11,134.1,7.4554]
[1742415571161,0.0529707,134.11,134.09,29.76928735]
[1742415571361,0.0529707,134.11,134.09,0.04928735]
[1742415573460,29.7,134.1,134.05,37.1579]
[1742415573656,33.9071,134.1,134.05,29.7]
[1742415573861,67.41350998,134.1,134.04,7.4585]
[1742415574262,7.4565,134.09,134.04,7.4585]
[1742415574462,67.41350998,134.1,134.02,29.7]
[1742415574463,246.0,134.08,134.02,29.7]
[1742415574763,63.22640998,134.07,134.05,0.05504991]
[1742415574957,63.22640998,134.07,133.98,117.18152583]
[1742415575158,3.864,134.06,133.98,117.18152583]
[1742415575362,7.4597,134.03,133.97,29.72]
[1742415575662,246.0,134.02,133.97,29.72]
[1742415576063,0.0537016,134.01,133.98,7.50983463]
[1742415576364,0.0537016,134.01,133.98,0.04813463]
[1742415576764,0.0537016,134.01,133.98,7.50993463]
[1742415576961,0.0537016,134.01,133.98,0.04813463]
[1742415577364,0.0537016,134.01,133.98,7.50983463]
[1742415578559,0.0537016,134.01,133.99,7.4614]
[1742415578963,0.0537016,134.01,133.98,0.04813463]
[1742415580472,0.0537016,134.01,133.98,7.51013463]
[1742415581267,0.0537016,134.01,133.98,0.04813463]
[1742415581669,7.461,134.0,133.98,0.04813463]
[1742415581870,0.0537016,134.01,133.98,0.04813463]
[1742415582169,7.5145016,134.01,133.98,0.04813463]
[1742415582864,0.0537016,134.01,133.98,0.04813463]
[1742415583270,7.5144016,134.01,133.98,0.04813463]
[1742415583872,29.72,134.0,133.98,0.04813463]
[1742415584473,63.22640998,134.0,133.9,39.78228601]
[1742415584769,63.22640998,134.0,133.9,48.10318601]
[1742415585368,63.22640998,134.0,133.9,77.82318601]
[1742415585369,64.52591146,134.0,133.9,77.82318601]
[1742415585573,4.2449,133.99,133.9,77.82318601]
[1742415585773,0.05196744,133.96,133.94,0.05587301]
[1742415585973,246.25196744,133.96,133.94,0.05587301]
[1742415586875,253.71516744,133.96,133.94,0.05587301]
[1742415587078,246.25196744,133.96,133.94,0.05587301]
[1742415589076,246.25196744,133.96,133.95,7.4638]
[1742415589677,246.25196744,133.96,133.94,0.05587301]
[1742415590073,229.58623152,133.96,133.94,0.05587301]
[1742415590274,229.58623152,133.96,133.95,7.4638]
[1742415591980,204.59097713,133.96,133.95,7.4638]
[1742415592172,0.04717919,133.97,133.96,7.4632]
[1742415592379,0.04717919,133.97,133.96,37.1832]
[1742415593279,246.28,134.01,134.0,7.461]
[1742415596080,246.28,134.01,133.99,37.22931026]
[1742415596382,246.28,134.01,133.99,7.50931026]
[1742415597974,246.28,134.01,133.99,0.04801026]
[1742415598381,246.28,134.01,133.93,29.72]
[1742415598685,250.46,134.01,133.93,29.72]
[1742415598883,246.28,134.01,133.93,29.72]
[1742415599183,246.28,134.01,133.95,21.05331046]
[1742415599381,246.28,134.01,133.96,29.72]
[1742415599582,0.05496433,133.99,133.98,7.4621]
[1742415603287,246.28,134.01,134.0,7.461]
[1742415605482,0.04933239,134.02,134.01,7.4604]
[1742415605986,0.04933239,134.02,134.01,28.51371046]
[1742415607281,246.26,134.06,134.05,7.4582]
[1742415611386,246.26,134.06,134.04,0.04961697]
[1742415611786,7.4582,134.05,134.04,0.04961697]
[1742415612389,37.858,134.05,133.99,29.83671451]
[1742415612583,21.05331046,134.04,134.0,17.4065715]
[1742415612885,7.4598,134.03,134.0,9.9455715]
[1742415613086,21.05331046,134.04,134.0,9.9455715]
[1742415613585,7.4604,134.01,134.0,9.9455715]
[1742415613990,7.4604,134.01,133.99,0.05148628]
[1742415614389,0.05433607,134.03,133.99,0.05148628]
[1742415615487,0.05433607,134.03,134.02,7.4599]
[1742415615683,0.05433607,134.03,133.99,0.05148628]
[1742415615888,29.75433607,134.03,133.99,0.05148628]
[1742415616088,7.46,134.02,133.99,0.05148628]
[1742415616693,7.46,134.02,133.99,7.51298628]
[1742415617595,37.21393607,134.03,133.99,7.51298628]
[1742415617797,37.21393607,134.03,134.0,7.461]
[1742415618094,37.21393607,134.03,133.99,0.05148628]
[1742415618394,7.46,134.02,133.99,7.51278628]
[1742415618596,7.46,134.02,133.99,0.05148628]
[1742415618796,21.05331046,134.0,133.99,0.05148628]
[1742415619092,304.43431046,134.0,133.99,0.05148628]
[1742415621098,296.97331046,134.0,133.93,29.68]
[1742415621293,21.05331046,133.98,133.93,29.68]
[1742415621692,7.4639,133.95,133.92,13.9616715]
[1742415621897,7.4639,133.95,133.92,4.0161]
[1742415622200,7.5133961,133.95,133.92,4.06940389]
[1742415622398,7.4644,133.94,133.92,4.06940389]
[1742415622696,7.4644,133.94,133.92,0.05330389]
[1742415623295,7.5134961,133.95,133.92,0.05330389]
[1742415623494,0.0494961,133.95,133.92,0.05330389]
[1742415623895,7.5134961,133.95,133.92,0.05330389]
[1742415624195,0.0494961,133.95,133.92,0.05330389]
[1742415624502,0.0494961,133.95,133.92,7.51860389]
[1742415625310,0.0494961,133.95,133.92,0.05330389]
[1742415626404,0.0494961,133.95,133.93,7.4646]
[1742415626999,0.0494961,133.95,133.94,37.1443]
[1742415629405,246.22,134.0,133.99,7.4616]
[1742415629803,246.3,134.05,133.97,50.73331046]
[1742415630208,246.3,134.05,133.99,21.05331046]
[1742415630406,246.3,134.05,134.0,29.68]
[1742415630608,246.3,134.05,134.04,7.4588]
[1742415631312,246.3,134.05,134.03,7.459]
[1742415631510,246.3,134.05,134.01,0.05118639]
[1742415631715,246.3,134.05,134.02,7.4598]
[1742415632010,246.3,134.05,134.01,0.05118639]
[1742415632209,7.4589,134.04,134.01,0.05118639]
[1742415632412,246.3,134.05,134.01,0.05118639]
[1742415632907,253.7587,134.05,134.01,0.05118639]
[1742415633108,246.3,134.05,134.01,0.05118639]
[1742415633504,21.05331046,134.04,134.01,0.05118639]
[1742415633705,28.51321046,134.02,134.01,0.05118639]
[1742415634806,28.51451046,134.0,133.94,392.7757]
[1742415635007,28.51451046,134.0,133.94,33.7757]
[1742415635303,28.51451046,134.0,133.95,7.4637]
[1742415635803,7.51071688,133.99,133.96,0.05300222]
[1742415636215,0.04911688,133.99,133.96,0.05300222]
[1742415636507,21.05331046,133.98,133.96,0.05300222]
[1742415636714,50.73331046,133.98,133.96,0.05300222]
[1742415636912,7.4627,133.97,133.96,0.05300222]
[1742415637312,50.73331046,133.98,133.9,367.0234]
[1742415637613,28.51681046,133.96,133.91,29.68]
[1742415638114,28.51681046,133.96,133.91,37.1457]
[1742415638513,0.04926201,133.95,133.92,0.05325073]
[1742415638716,7.51316201,133.95,133.92,0.05325073]
[1742415639119,0.04926201,133.95,133.92,0.05325073]
[1742415639415,37.64396612,134.03,133.93,29.68]
[1742415639612,41.62636612,134.03,133.95,7.4635]
[1742415639812,33.71966612,133.98,133.91,4.2263]
[1742415640015,63.39966612,133.98,133.91,33.9063]
[1742415640316,275.98,133.97,133.91,29.68]
[1742415640618,33.7743767,133.96,133.93,0.05628241]
[1742415641013,33.71966612,133.94,133.87,37.8799]
[1742415641211,63.39966612,133.94,133.87,37.8799]
[1742415641914,63.39966612,133.94,133.86,39.6255715]
[1742415642111,63.39966612,133.94,133.89,0.04838692]
[1742415642309,0.05433776,133.91,133.89,0.04838692]
[1742415642509,7.52073776,133.91,133.89,0.04838692]
[1742415643015,0.05433776,133.91,133.89,0.04838692]
[1742415643619,276.07433776,133.91,133.89,0.04838692]
[1742415646317,33.71966612,133.9,133.82,33.8442]
[1742415647015,276.02,133.91,133.82,33.8442]
[1742415647220,246.34,133.91,133.82,33.8442]